bitfinex-derivatives/quotes_BTCF0:USTF0_20241006
["timestamp","ask_amount","ask_price","bid_price","bid_amount"]
[1728210831594,0.064466,62051.0,62050.0,0.5135975]
[1728210832194,0.064466,62051.0,62050.0,0.40071454]
[1728210832392,0.064466,62051.0,62050.0,0.51359679]
[1728210832893,0.065466,62051.0,62050.0,0.51359679]
[1728210833101,0.066466,62051.0,62050.0,0.51559679]
[1728210833595,0.065466,62051.0,62050.0,0.51559679]
[1728210833804,0.066466,62051.0,62050.0,0.51659679]
[1728210834196,0.066466,62051.0,62050.0,0.40371454]
[1728210834381,0.066466,62051.0,62050.0,0.51659809]
[1728210834991,0.21095718,62051.0,62050.0,0.0034]
[1728210835285,0.33189121,62051.0,62050.0,0.0034]
[1728210838695,0.33188277,62051.0,62050.0,0.0034]
[1728210838888,0.13792548,62051.0,62050.0,0.0034]
[1728210842892,0.066466,62051.0,62050.0,0.24881899]
[1728210845699,0.01001951,62051.0,62050.0,0.24881899]
[1728210845999,0.002,62051.0,62050.0,0.24881899]
[1728210846396,0.066466,62051.0,62050.0,0.24881899]
[1728210846902,0.066466,62051.0,62050.0,0.2479518]
[1728210850001,0.066466,62051.0,62050.0,0.21172568]
[1728210851187,0.066466,62051.0,62050.0,0.24796239]
[1728210851903,0.066466,62051.0,62050.0,0.24796912]
[1728210856596,0.066466,62051.0,62050.0,0.11497545]
[1728210857000,0.066466,62051.0,62050.0,0.11496991]
[1728210857999,0.09892057,62051.0,62050.0,0.0034]
[1728210858500,0.14838743,62051.0,62050.0,0.0034]
[1728210858694,0.18785256,62051.0,62050.0,0.0034]
[1728210865118,0.066466,62051.0,62050.0,0.2479991]
[1728210873007,0.22701294,62051.0,62050.0,0.0034]
[1728210873215,0.34837498,62051.0,62050.0,0.0034]
[1728210873518,0.18782804,62051.0,62050.0,0.0034]
[1728210876712,0.18781806,62051.0,62050.0,0.0034]
[1728210880020,0.01001841,62051.0,62050.0,0.4025225]
[1728210880225,0.0075,62052.0,62050.0,0.4025225]
[1728210880431,0.071965,62052.0,62051.0,0.51240879]
[1728210880618,0.064465,62052.0,62051.0,0.51240879]
[1728210881316,0.065465,62052.0,62051.0,0.51240879]
[1728210882018,0.064465,62052.0,62051.0,0.51240879]
[1728210882220,0.065465,62052.0,62051.0,0.51340879]
[1728210882821,0.066465,62052.0,62051.0,0.51640879]
[1728210884424,0.066465,62052.0,62051.0,0.36194887]
[1728210885925,0.066465,62052.0,62051.0,0.51584933]
[1728210886122,0.066465,62052.0,62051.0,0.36194887]
[1728210886322,0.066465,62052.0,62051.0,0.51584996]
[1728210887126,0.066465,62052.0,62046.0,0.09300824]
[1728210887127,0.064468,62049.0,62046.0,0.09300824]
[1728210887326,0.17700164,62047.0,62046.0,0.09300824]
[1728210887525,0.29883318,62047.0,62046.0,0.09300824]
[1728210887730,0.12223154,62047.0,62046.0,0.09300824]
[1728210887935,0.064472,62045.0,62044.0,0.0323]
[1728210888119,0.12223154,62045.0,62044.0,0.06130014]
[1728210888325,0.12223154,62045.0,62044.0,0.12577314]
[1728210889923,0.12323154,62045.0,62044.0,0.12677314]
[1728210890532,0.16195011,62045.0,62044.0,0.12677314]
[1728210890832,0.28478165,62045.0,62044.0,0.12677314]
[1728210891732,0.28474208,62045.0,62044.0,0.12677314]
[1728210892829,0.12419197,62045.0,62044.0,0.12677314]
[1728210895029,0.19548779,62047.0,62044.0,0.45601894]
[1728210895223,0.17660164,62047.0,62046.0,0.0004]
[1728210895423,0.24107164,62047.0,62046.0,0.39818282]
[1728210896432,0.24207164,62047.0,62046.0,0.39693655]
[1728210896833,0.24307164,62047.0,62046.0,0.39693655]
[1728210897029,0.24207164,62047.0,62046.0,0.39693655]
[1728210897332,0.24207164,62047.0,62046.0,0.39793655]
[1728210897533,0.24307164,62047.0,62046.0,0.39893655]
[1728210900236,0.24307164,62047.0,62046.0,0.24547071]
[1728210902239,0.34500677,62047.0,62046.0,0.0024]
[1728210902627,0.16840513,62047.0,62046.0,0.0024]
[1728210903541,0.52920513,62047.0,62046.0,0.0024]
[1728210904535,0.48972269,62047.0,62046.0,0.0024]
[1728210904740,0.5291927,62047.0,62046.0,0.0024]
[1728210907938,0.49969865,62047.0,62046.0,0.0024]
[1728210909739,0.07442865,62047.0,62046.0,0.066871]
[1728210909933,0.03495864,62047.0,62046.0,0.066871]
[1728210910234,0.0038,62050.0,62049.0,0.064468]
[1728210910433,0.094563,62054.0,62050.0,0.064466]
[1728210910434,0.3646,62053.0,62050.0,0.064466]
[1728210910739,0.3646,62053.0,62052.0,0.0004]
[1728210910943,0.3608,62053.0,62052.0,0.11122401]
[1728210911830,0.45430137,62053.0,62052.0,0.11122401]
[1728210912536,0.45530137,62053.0,62052.0,0.11422401]
[1728210912944,0.45630137,62053.0,62052.0,0.11422401]
[1728210913535,0.45630137,62053.0,62052.0,0.11722401]
[1728210914448,0.45630137,62053.0,62052.0,0.1171516]
[1728210917148,0.45630137,62053.0,62052.0,0.0064]
[1728210917541,0.09550137,62053.0,62052.0,0.0064]
[1728210923350,0.45630137,62053.0,62052.0,0.0064]
[1728210925153,0.57177078,62053.0,62044.0,0.0326]
[1728210925448,0.17993341,62052.0,62049.0,0.0075]
[1728210925647,0.12212839,62051.0,62049.0,0.0075]
[1728210925856,0.05780502,62052.0,62049.0,0.0075]
[1728210925857,0.12212839,62050.0,62049.0,0.0075]
[1728210926354,0.07265863,62050.0,62049.0,0.0075]
[1728210926658,0.07265863,62050.0,62049.0,0.0095]
[1728210926659,0.09765819,62050.0,62049.0,0.0095]
[1728210927055,0.18659539,62050.0,62049.0,0.0095]
[1728210927357,0.18759539,62050.0,62049.0,0.0095]
[1728210928149,0.18859539,62050.0,62049.0,0.0095]
[1728210929956,0.24640041,62050.0,62049.0,0.0095]
[1728210931955,0.18859539,62050.0,62049.0,0.0095]
[1728210932158,0.18859539,62050.0,62049.0,0.12088785]
[1728210932159,0.066467,62050.0,62049.0,0.12088785]
[1728210933451,0.066467,62050.0,62049.0,0.25366515]
[1728210934758,0.066467,62050.0,62049.0,0.12088785]
[1728210935150,0.066467,62050.0,62049.0,0.25368284]
[1728210935857,0.066467,62050.0,62049.0,0.12088785]
[1728210938862,0.066467,62050.0,62049.0,0.12093415]
[1728210939452,0.066467,62050.0,62049.0,0.25377083]
[1728210939652,0.066467,62050.0,62049.0,0.25378732]
[1728210939855,0.066467,62050.0,62049.0,0.12093415]
[1728210940250,0.066467,62050.0,62049.0,0.0095]
[1728210941756,0.427267,62050.0,62049.0,0.0095]
[1728210941966,0.066467,62050.0,62049.0,0.0095]
[1728210942158,0.427267,62050.0,62049.0,0.0095]
[1728210943361,0.066467,62050.0,62049.0,0.0095]
[1728210943667,0.427267,62050.0,62049.0,0.0095]
[1728210944063,0.066467,62050.0,62049.0,0.0095]
[1728210944264,0.427267,62050.0,62049.0,0.0095]
[1728210944759,0.066467,62050.0,62049.0,0.0095]
[1728210944963,0.427267,62050.0,62049.0,0.0095]
[1728210945374,0.066467,62050.0,62049.0,0.0095]
[1728210945866,0.427267,62050.0,62049.0,0.0095]
[1728210947162,0.60663366,62050.0,62049.0,0.00574314]
[1728210947365,0.24583366,62050.0,62049.0,0.00574314]
[1728210947667,0.18802823,62050.0,62049.0,0.00574314]
[1728210947861,0.54882823,62050.0,62049.0,0.00574314]
[1728210948074,0.60663366,62050.0,62049.0,0.00574314]
[1728210948269,0.24583366,62050.0,62049.0,0.00574314]
[1728210948471,0.54882823,62050.0,62049.0,0.00574314]
[1728210948666,0.60663366,62050.0,62049.0,0.00574314]
[1728210949164,0.24583366,62050.0,62049.0,0.00574314]
[1728210949472,0.18802823,62050.0,62049.0,0.00574314]
[1728210949663,0.54882823,62050.0,62049.0,0.00574314]
[1728210949860,0.60663366,62050.0,62049.0,0.00574314]
[1728210950262,0.24583366,62050.0,62049.0,0.00574314]
[1728210951464,0.18802823,62050.0,62049.0,0.00574314]
[1728210955169,0.18802823,62050.0,62049.0,0.11722076]
[1728210955170,0.066467,62050.0,62049.0,0.11722076]
[1728210957976,0.066467,62050.0,62049.0,0.21397398]
[1728210958175,0.066467,62050.0,62049.0,0.11722076]
[1728210962189,0.18804089,62050.0,62049.0,0.00574314]
[1728210962372,0.36478545,62050.0,62049.0,0.00574314]
[1728210962777,0.36478545,62050.0,62049.0,0.07021114]
[1728210965682,0.18804089,62050.0,62049.0,0.07021114]
[1728210966880,0.24323172,62050.0,62049.0,0.07021114]
[1728210967087,0.28269845,62050.0,62049.0,0.07021114]
[1728210967386,0.24323172,62050.0,62049.0,0.066468]
[1728210967576,0.36479259,62050.0,62049.0,0.066468]
[1728210969389,0.36479639,62050.0,62049.0,0.066468]
[1728210970287,0.24323552,62050.0,62049.0,0.31076746]
[1728210970488,0.066467,62050.0,62049.0,0.31076746]
[1728210977194,0.066467,62050.0,62049.0,0.066468]
[1728210977399,0.15540197,62050.0,62049.0,0.066468]
[1728210977599,0.11593552,62050.0,62049.0,0.066468]
[1728210978787,0.17304659,62050.0,62049.0,0.066468]
[1728210979699,0.22823704,62050.0,62049.0,0.066468]
[1728210979896,0.34981511,62050.0,62049.0,0.066468]
[1728210983595,0.22823704,62050.0,62049.0,0.066468]
[1728210983796,0.2114038,62050.0,62049.0,0.066468]
[1728210983997,0.17876852,62050.0,62049.0,0.066468]
[1728210984204,0.30033874,62050.0,62049.0,0.066468]
[1728210985587,0.30033874,62050.0,62049.0,0.31075854]
[1728210985588,0.17876852,62050.0,62049.0,0.31075854]
[1728210985801,0.002,62050.0,62049.0,0.31075854]
[1728210992700,0.17876852,62050.0,62049.0,0.066468]
[1728210992899,0.30034474,62050.0,62049.0,0.066468]
[1728210996803,0.12357622,62050.0,62049.0,0.066468]
[1728211000613,0.002,62050.0,62049.0,0.31069184]
[1728211007711,0.002,62050.0,62049.0,0.066468]
[1728211015720,0.0841612,62050.0,62045.0,0.0075]
[1728211015916,0.12162774,62049.0,62046.0,0.06447]
[1728211016217,0.12162774,62048.0,62046.0,0.06447]
[1728211016413,0.12162774,62047.0,62046.0,0.06447]
[1728211017724,0.12262774,62047.0,62046.0,0.06447]
[1728211018317,0.1221288,62047.0,62046.0,0.06447]
[1728211018627,0.1231288,62047.0,62046.0,0.06447]
[1728211021727,0.12314185,62047.0,62046.0,0.06447]
[1728211022822,0.0113,62050.0,62046.0,0.57726644]
[1728211023025,0.075767,62050.0,62049.0,0.0004]
[1728211023324,0.064467,62050.0,62049.0,0.24554728]
[1728211024226,0.065467,62050.0,62049.0,0.24554728]
[1728211025025,0.066467,62050.0,62049.0,0.24554728]
[1728211026026,0.066467,62050.0,62049.0,0.24654728]
[1728211029823,0.066467,62050.0,62049.0,0.0014]
[1728211037934,0.24328769,62050.0,62049.0,0.0014]
[1728211038131,0.36486854,62050.0,62049.0,0.0014]
[1728211039627,0.1486066,62050.0,62049.0,0.0014]
[1728211039834,0.18807338,62050.0,62049.0,0.0014]
[1728211041627,0.36489407,62050.0,62049.0,0.0014]
[1728211042835,0.24587802,62050.0,62049.0,0.0014]
[1728211043039,0.3648869,62050.0,62049.0,0.0014]
[1728211043528,0.24587802,62050.0,62049.0,0.0014]
[1728211043833,0.18807338,62050.0,62049.0,0.0014]
[1728211044836,0.066467,62050.0,62049.0,0.24567123]
[1728211046533,0.066467,62050.0,62049.0,0.24565672]
[1728211051542,0.066467,62050.0,62049.0,0.24567027]
[1728211052944,0.066467,62050.0,62049.0,0.0014]
[1728211053134,0.18807554,62050.0,62049.0,0.0014]
[1728211056352,0.066467,62050.0,62049.0,0.0014]
[1728211056546,0.09913165,62050.0,62049.0,0.0014]
[1728211056751,0.18806821,62050.0,62049.0,0.0014]
[1728211059859,0.066467,62050.0,62049.0,0.24568392]
[1728211061347,0.066467,62050.0,62049.0,0.24568813]
[1728211067849,0.066467,62050.0,62046.0,0.11289097]
[1728211067850,0.14861856,62050.0,62045.0,0.0075]
[1728211068050,0.0004,62046.0,62045.0,0.071972]
[1728211068350,0.03308229,62046.0,62045.0,0.064472]
[1728211068547,0.12201861,62046.0,62045.0,0.064472]
[1728211069046,0.12201861,62046.0,62045.0,0.065472]
[1728211069654,0.12201861,62046.0,62045.0,0.064472]
[1728211069853,0.12301861,62046.0,62045.0,0.065472]
[1728211070462,0.12401861,62046.0,62045.0,0.065472]
[1728211074960,0.0038,62051.0,62045.0,0.46501685]
[1728211075171,0.068266,62051.0,62050.0,0.0004]
[1728211075359,0.064466,62051.0,62050.0,0.24572635]
[1728211076158,0.065466,62051.0,62050.0,0.24572635]
[1728211076867,0.064466,62051.0,62050.0,0.24572635]
[1728211077057,0.065466,62051.0,62050.0,0.24572635]
[1728211077362,0.066466,62051.0,62050.0,0.24572635]
[1728211082960,0.066466,62051.0,62047.0,0.06447]
[1728211082961,0.24577502,62051.0,62047.0,0.06447]
[1728211083170,0.0004,62048.0,62047.0,0.06447]
[1728211083467,0.03296836,62048.0,62047.0,0.06447]
[1728211083672,0.12190461,62048.0,62047.0,0.06447]
[1728211084463,0.12290461,62048.0,62047.0,0.06447]
[1728211085267,0.12290461,62048.0,62047.0,0.06547]
[1728211085965,0.12390461,62048.0,62047.0,0.06547]
[1728211088561,0.30076138,62048.0,62047.0,0.06547]
[1728211089987,0.17925677,62048.0,62047.0,0.310018]
[1728211090166,0.0024,62048.0,62047.0,0.310018]
[1728211094379,0.0024,62048.0,62047.0,0.3100328]
[1728211097870,0.0024,62048.0,62047.0,0.17704257]
[1728211099878,0.0024,62048.0,62047.0,0.17704429]
[1728211105080,0.07439791,62048.0,62047.0,0.06547]
[1728211105381,0.12386718,62048.0,62047.0,0.06547]
[1728211109187,0.12388802,62048.0,62047.0,0.06547]
[1728211112983,0.001,62048.0,62047.0,0.42289116]
[1728211113194,0.0038,62051.0,62047.0,0.30999434]
[1728211113379,0.064469,62049.0,62048.0,0.24452434]
[1728211114184,0.064469,62049.0,62048.0,0.24364368]
[1728211114685,0.065469,62049.0,62048.0,0.24364368]
[1728211115282,0.066469,62049.0,62048.0,0.24464368]
[1728211116381,0.066469,62049.0,62048.0,0.11215326]
[1728211122491,0.002,62049.0,62048.0,0.11215326]
[1728211123693,0.066469,62049.0,62048.0,0.11215326]
[1728211128289,0.066469,62049.0,62048.0,0.001]
[1728211128489,0.18842347,62049.0,62048.0,0.001]
[1728211131888,0.36522166,62049.0,62048.0,0.001]
[1728211135092,0.066469,62049.0,62048.0,0.24458339]
[1728211138191,0.066469,62049.0,62048.0,0.11212575]
[1728211138783,0.066469,62049.0,62048.0,0.001]
[1728211138983,0.066469,62049.0,62048.0,0.11212822]
[1728211142395,0.066469,62049.0,62048.0,0.11213939]
[1728211143099,0.066469,62049.0,62048.0,0.001]
[1728211143395,0.18844255,62049.0,62048.0,0.001]
[1728211147197,0.36524074,62049.0,62048.0,0.001]
[1728211147502,0.36520114,62049.0,62048.0,0.001]
[1728211150097,0.60406719,62049.0,62048.0,0.24475581]
[1728211150297,0.427269,62049.0,62048.0,0.24475581]
[1728211150904,0.066469,62049.0,62048.0,0.24475581]
[1728211151207,0.427269,62049.0,62048.0,0.24475581]
[1728211152095,0.066469,62049.0,62048.0,0.24475581]
[1728211152297,0.427269,62049.0,62048.0,0.24475581]
[1728211152607,0.066469,62049.0,62048.0,0.24475581]
[1728211152998,0.427269,62049.0,62048.0,0.24475581]
[1728211153906,0.066469,62049.0,62048.0,0.24475581]
[1728211154107,0.427269,62049.0,62048.0,0.24475581]
[1728211154699,0.066469,62049.0,62048.0,0.24475581]
[1728211154903,0.427269,62049.0,62048.0,0.24475581]
[1728211158311,0.54917626,62049.0,62048.0,0.001]
[1728211159906,0.54916859,62049.0,62048.0,0.001]
[1728211160603,0.49969727,62049.0,62048.0,0.001]
[1728211162522,0.49970555,62049.0,62048.0,0.001]
[1728211164507,0.4997077,62049.0,62048.0,0.001]
[1728211165107,0.427269,62049.0,62048.0,0.24466791]
[1728211169411,0.066469,62049.0,62048.0,0.24466791]
[1728211169711,0.427269,62049.0,62048.0,0.11216431]
[1728211170419,0.427269,62049.0,62048.0,0.24468362]
[1728211171924,0.066469,62049.0,62048.0,0.24468362]
[1728211172112,0.427269,62049.0,62048.0,0.24468362]
[1728211173423,0.60697608,62049.0,62048.0,0.001]
[1728211174025,0.24617608,62049.0,62048.0,0.001]
[1728211174217,0.54916999,62049.0,62048.0,0.001]
[1728211174525,0.60697608,62049.0,62048.0,0.001]
[1728211179220,0.60697608,62049.0,62046.0,0.03933913]
[1728211179421,0.17970708,62048.0,62047.0,0.06447]
[1728211180219,0.42942901,62049.0,62047.0,0.17586511]
[1728211180425,0.066469,62049.0,62048.0,0.24457382]
[1728211181021,0.065469,62049.0,62048.0,0.24457382]
[1728211181325,0.066469,62049.0,62048.0,0.24457382]
[1728211181525,0.065469,62049.0,62048.0,0.24457382]
[1728211181922,0.065469,62049.0,62048.0,0.24557382]
[1728211183221,0.066469,62049.0,62048.0,0.24557382]
[1728211186825,0.066469,62049.0,62048.0,0.24558547]
[1728211187227,0.066469,62049.0,62048.0,0.0014]
[1728211195337,0.10593673,62049.0,62048.0,0.0014]
[1728211195537,0.18812953,62049.0,62048.0,0.0014]
[1728211196836,0.18813148,62049.0,62048.0,0.0014]
[1728211200136,0.36507831,62049.0,62048.0,0.0014]
[1728211201140,0.18813148,62049.0,62048.0,0.0014]
[1728211202548,0.066469,62049.0,62048.0,0.24563184]
[1728211205031,0.066469,62049.0,62048.0,0.24564435]
[1728211205726,0.427269,62049.0,62048.0,0.24564435]
[1728211206940,0.066469,62049.0,62048.0,0.24564435]
[1728211207241,0.427269,62049.0,62048.0,0.24564435]
[1728211208942,0.066469,62049.0,62048.0,0.24564435]
[1728211209144,0.427269,62049.0,62048.0,0.24564435]
[1728211209642,0.066469,62049.0,62048.0,0.24564435]
[1728211209845,0.066469,62049.0,62048.0,0.24561343]
[1728211210342,0.427269,62049.0,62048.0,0.0014]
[1728211210731,0.066469,62049.0,62048.0,0.0014]
[1728211210934,0.427269,62049.0,62048.0,0.0014]
[1728211212747,0.066469,62049.0,62048.0,0.0014]
[1728211212944,0.427269,62049.0,62048.0,0.0014]
[1728211216149,0.066469,62049.0,62048.0,0.0014]
[1728211216343,0.427269,62049.0,62048.0,0.0014]
[1728211217347,0.54892854,62049.0,62048.0,0.0014]
[1728211217747,0.18812854,62049.0,62048.0,0.0014]
[1728211218647,0.54892854,62049.0,62048.0,0.0014]
[1728211220247,0.54892912,62049.0,62048.0,0.0014]
[1728211220440,0.18812912,62049.0,62048.0,0.0014]
[1728211220642,0.54892912,62049.0,62048.0,0.0014]
[1728211221251,0.18812912,62049.0,62048.0,0.0014]
[1728211221935,0.54892912,62049.0,62048.0,0.0014]
[1728211222142,0.6067353,62049.0,62048.0,0.0014]
[1728211222338,0.2459353,62049.0,62048.0,0.0014]
[1728211222649,0.54892912,62049.0,62048.0,0.0014]
[1728211222841,0.6067353,62049.0,62048.0,0.0014]
[1728211223749,0.2459353,62049.0,62048.0,0.0014]
[1728211223948,0.54892912,62049.0,62048.0,0.0014]
[1728211224251,0.2459353,62049.0,62048.0,0.0014]
[1728211224448,0.54892912,62049.0,62048.0,0.0014]
[1728211224638,0.6067353,62049.0,62048.0,0.0014]
[1728211225446,0.427269,62049.0,62048.0,0.24561969]
[1728211227846,0.066469,62049.0,62048.0,0.24561969]
[1728211228047,0.427269,62049.0,62048.0,0.24561969]
[1728211230052,0.066469,62049.0,62048.0,0.24561969]
[1728211230345,0.427269,62049.0,62048.0,0.24561969]
[1728211231439,0.066469,62049.0,62048.0,0.24561969]
[1728211231639,0.427269,62049.0,62048.0,0.24561969]
[1728211232352,0.60674393,62049.0,62048.0,0.0014]
[1728211234156,0.24594393,62049.0,62048.0,0.0014]
[1728211234359,0.54893775,62049.0,62048.0,0.0014]
[1728211234552,0.60674393,62049.0,62048.0,0.0014]
[1728211235060,0.24594393,62049.0,62048.0,0.0014]
[1728211235252,0.54893775,62049.0,62048.0,0.0014]
[1728211235559,0.60674393,62049.0,62048.0,0.0014]
[1728211235947,0.24594393,62049.0,62048.0,0.0014]
[1728211236148,0.54893775,62049.0,62048.0,0.0014]
[1728211236447,0.60674393,62049.0,62048.0,0.0014]
[1728211238256,0.24594393,62049.0,62048.0,0.0014]
[1728211238448,0.54893775,62049.0,62048.0,0.0014]
[1728211238751,0.60674393,62049.0,62048.0,0.0014]
[1728211239162,0.24594393,62049.0,62048.0,0.0014]
[1728211239352,0.54893775,62049.0,62048.0,0.0014]
[1728211239551,0.60675632,62049.0,62048.0,0.0014]
[1728211239753,0.78371731,62049.0,62048.0,0.0014]
[1728211240070,0.60675632,62049.0,62048.0,0.0014]
[1728211240249,0.72591188,62049.0,62048.0,0.0014]
[1728211240557,0.427269,62049.0,62048.0,0.2455554]
[1728211241962,0.427269,62049.0,62048.0,0.11278671]
[1728211242353,0.066469,62049.0,62048.0,0.11278671]
[1728211242554,0.427269,62049.0,62048.0,0.11278671]
[1728211243557,0.066469,62049.0,62048.0,0.11278671]
[1728211243856,0.427269,62049.0,62048.0,0.11278671]
[1728211244362,0.427269,62049.0,62048.0,0.11280626]
[1728211244550,0.066469,62049.0,62048.0,0.11280626]
[1728211244854,0.427269,62049.0,62048.0,0.11280626]
[1728211245959,0.427269,62049.0,62048.0,0.20957709]
[1728211246459,0.066469,62049.0,62048.0,0.20957709]
[1728211247574,0.13870863,62049.0,62048.0,0.0014]
[1728211254064,0.13871023,62049.0,62048.0,0.0014]
[1728211254469,0.24598653,62049.0,62048.0,0.0014]
[1728211254668,0.3490521,62049.0,62048.0,0.0014]
[1728211255465,0.22734041,62049.0,62048.0,0.24554455]
[1728211255671,0.066469,62049.0,62048.0,0.24554455]
[1728211259174,0.066469,62049.0,62048.0,0.24555891]
[1728211259565,0.427269,62049.0,62048.0,0.24555891]
[1728211262164,0.427269,62049.0,62048.0,0.11278831]
[1728211262674,0.60674554,62049.0,62048.0,0.0014]
[1728211263677,0.60674554,62049.0,62048.0,0.00084524]
[1728211264261,0.24594554,62049.0,62048.0,0.00084524]
[1728211264468,0.54893932,62049.0,62048.0,0.00084524]
[1728211264762,0.60674554,62049.0,62048.0,0.00084524]
[1728211266276,0.24594554,62049.0,62048.0,0.00084524]
[1728211266476,0.18813932,62049.0,62048.0,0.00084524]
[1728211266676,0.54893932,62049.0,62048.0,0.00084524]
[1728211266878,0.60674554,62049.0,62048.0,0.00084524]
[1728211267470,0.606742,62049.0,62048.0,0.00084524]
[1728211267871,0.245942,62049.0,62048.0,0.00084524]
[1728211268179,0.54893578,62049.0,62048.0,0.00084524]
[1728211268383,0.606742,62049.0,62048.0,0.00084524]
[1728211268876,0.245942,62049.0,62048.0,0.00084524]
[1728211269186,0.54893578,62049.0,62048.0,0.00084524]
[1728211269385,0.606742,62049.0,62048.0,0.00084524]
[1728211269881,0.245942,62049.0,62048.0,0.00084524]
[1728211270094,0.54893578,62049.0,62048.0,0.00084524]
[1728211270375,0.606742,62049.0,62048.0,0.00084524]
[1728211270577,0.606742,62049.0,62048.0,0.24505071]
[1728211270578,0.427269,62049.0,62048.0,0.24505071]
[1728211270782,0.066469,62049.0,62048.0,0.24505071]
[1728211271178,0.427269,62049.0,62048.0,0.24505071]
[1728211271983,0.066469,62049.0,62048.0,0.24505071]
[1728211272776,0.427269,62049.0,62048.0,0.24505071]
[1728211273485,0.066469,62049.0,62048.0,0.24505071]
[1728211273781,0.427269,62049.0,62048.0,0.24505071]
[1728211277278,0.427269,62049.0,62048.0,0.24511566]
[1728211277590,0.427269,62049.0,62048.0,0.00084524]
[1728211278880,0.066469,62049.0,62048.0,0.00084524]
[1728211279074,0.427269,62049.0,62048.0,0.00084524]
[1728211281689,0.066469,62049.0,62048.0,0.00084524]
[1728211281992,0.427269,62049.0,62048.0,0.00084524]
[1728211282595,0.066469,62049.0,62048.0,0.00084524]
[1728211282989,0.427269,62049.0,62048.0,0.00084524]
[1728211283388,0.066469,62049.0,62048.0,0.00084524]
[1728211283593,0.427269,62049.0,62048.0,0.00084524]
[1728211285112,0.066469,62049.0,62048.0,0.00084524]
[1728211285589,0.49943916,62049.0,62048.0,0.00084524]
[1728211285789,0.24591748,62049.0,62048.0,0.00084524]
[1728211285992,0.54891055,62049.0,62048.0,0.00084524]
[1728211286179,0.24591748,62049.0,62048.0,0.00084524]
[1728211286380,0.54891055,62049.0,62048.0,0.00084524]
[1728211286595,0.60671748,62049.0,62048.0,0.00084524]
[1728211287185,0.24591748,62049.0,62048.0,0.00084524]
[1728211287379,0.54891055,62049.0,62048.0,0.00084524]
[1728211287593,0.60671748,62049.0,62048.0,0.00084524]
[1728211289606,0.24591748,62049.0,62048.0,0.00084524]
[1728211289893,0.54891055,62049.0,62048.0,0.00084524]
[1728211290197,0.60671748,62049.0,62048.0,0.00084524]
[1728211290393,0.24591748,62049.0,62048.0,0.00084524]
[1728211290590,0.54891055,62049.0,62048.0,0.00084524]
[1728211290899,0.60671748,62049.0,62048.0,0.00084524]
[1728211291085,0.24591748,62049.0,62048.0,0.00084524]
[1728211291283,0.54891055,62049.0,62048.0,0.00084524]
[1728211291483,0.60671748,62049.0,62048.0,0.00084524]
[1728211292096,0.60671748,62049.0,62048.0,0.06531424]
[1728211292493,0.72588247,62049.0,62048.0,0.06531424]
[1728211292694,0.066469,62049.0,62048.0,0.1767551]
[1728211292987,0.427269,62049.0,62048.0,0.1767551]
[1728211295402,0.3628,62049.0,62048.0,0.1767551]
[1728211296992,0.3628,62049.0,62048.0,0.17676227]
[1728211298391,0.3628,62049.0,62048.0,0.20570899]
[1728211300596,0.3628,62049.0,62048.0,0.09426096]
[1728211306805,0.427268,62049.0,62048.0,0.09426096]
[1728211307012,0.427268,62049.0,62048.0,0.02979196]
[1728211307595,0.57401326,62049.0,62048.0,0.02979196]
[1728211307800,0.60673148,62049.0,62044.0,0.071973]
[1728211308000,0.17946348,62048.0,62044.0,0.071973]
[1728211308300,0.17946348,62048.0,62044.0,0.10149732]
[1728211308301,0.0004,62045.0,62044.0,0.10149732]
[1728211308609,0.03311822,62045.0,62044.0,0.09399732]
[1728211308908,0.12205726,62045.0,62044.0,0.09399732]
[1728211311012,0.12405726,62045.0,62044.0,0.09399732]
[1728211311607,0.12395607,62045.0,62044.0,0.09399732]
[1728211315822,0.06447,62047.0,62044.0,0.33847687]
[1728211316118,0.06447,62047.0,62046.0,0.0004]
[1728211316319,0.06447,62047.0,62046.0,0.24487955]
[1728211316516,0.06447,62047.0,62046.0,0.24488157]
[1728211317504,0.06547,62047.0,62046.0,0.24488157]
[1728211317710,0.06647,62047.0,62046.0,0.24488157]
[1728211318117,0.06547,62047.0,62046.0,0.24488157]
[1728211318418,0.06647,62047.0,62046.0,0.24488157]
[1728211322822,0.11594117,62047.0,62046.0,0.0004]
[1728211323022,0.18805199,62047.0,62046.0,0.0004]
[1728211324120,0.34904916,62047.0,62046.0,0.0004]
[1728211324316,0.18805199,62047.0,62046.0,0.0004]
[1728211325211,0.22746692,62047.0,62046.0,0.0004]
[1728211325417,0.34904891,62047.0,62046.0,0.0004]
[1728211326922,0.18805199,62047.0,62046.0,0.0004]
[1728211329719,0.3651513,62047.0,62046.0,0.0004]
[1728211330722,0.24586572,62047.0,62046.0,0.0004]
[1728211330917,0.06647,62047.0,62046.0,0.24479743]
[1728211334634,0.06647,62047.0,62046.0,0.24479821]
[1728211337834,0.18805959,62047.0,62046.0,0.0004]
[1728211338137,0.18805958,62047.0,62046.0,0.0004]
[1728211339831,0.36515192,62047.0,62046.0,0.0004]
[1728211341835,0.18805958,62047.0,62046.0,0.0004]
[1728211344537,0.18805534,62047.0,62046.0,0.0004]
[1728211345935,0.18805534,62047.0,62046.0,0.24479244]
[1728211345936,0.06647,62047.0,62046.0,0.24479244]
[1728211349538,0.06647,62047.0,62046.0,0.24477524]
[1728211357347,0.06647,62047.0,62046.0,0.0004]
[1728211373956,0.42727,62047.0,62046.0,0.0004]
[1728211374363,0.06647,62047.0,62046.0,0.0004]
[1728211374651,0.42727,62047.0,62046.0,0.0004]
[1728211376160,0.06647,62047.0,62046.0,0.0004]
[1728211376361,0.42727,62047.0,62046.0,0.0004]
[1728211379263,0.06647,62047.0,62046.0,0.0004]
[1728211379461,0.42727,62047.0,62046.0,0.0004]
[1728211387981,0.06647,62047.0,62046.0,0.11190338]
[1728211388188,0.42727,62047.0,62046.0,0.24481114]
[1728211391582,0.42727,62047.0,62046.0,0.24389264]
[1728211391879,0.06647,62047.0,62046.0,0.24389264]
[1728211392073,0.42727,62047.0,62046.0,0.24389264]
[1728211392283,0.06647,62047.0,62046.0,0.24389264]
[1728211392483,0.42727,62047.0,62046.0,0.24389264]
[1728211394288,0.06647,62047.0,62046.0,0.24389264]
[1728211396590,0.06647,62047.0,62046.0,0.2405568]
[1728211397994,0.03693008,62047.0,62043.0,0.11289669]
[1728211398195,0.0004,62044.0,62043.0,0.11289669]
[1728211398393,0.03533008,62044.0,62043.0,0.17737069]